[Event "*** Titled Tuesday Blitz"]
[Site "Chess.com"]
[Date "2019.05.07"]
[Round "10"]
[White "Micki-taryan"]
[Black "HansCoolNiemann"]
[Result "0-1"]
[WhiteElo "3001"]
[BlackElo "2528"]
[TimeControl "180+2"]
[EndTime "15:26:51 PDT"]
[Termination "HansCoolNiemann won by checkmate"]

1. d4 {[%clk 0:03:01.9]} 1... f5 {[%clk 0:02:57]} 2. Nc3 {[%clk 0:02:58.6]} 2...
Nf6 {[%clk 0:02:55.2]} 3. Bg5 {[%clk 0:02:59.3]} 3... d5 {[%clk 0:02:55.7]} 4.
Bxf6 {[%clk 0:03:00]} 4... exf6 {[%clk 0:02:57.6]} 5. e3 {[%clk 0:03:00.5]} 5...
c6 {[%clk 0:02:58.8]} 6. Qf3 {[%clk 0:03:00.6]} 6... Be6 {[%clk 0:02:59.6]} 7.
Bd3 {[%clk 0:03:00.6]} 7... g6 {[%clk 0:03:00.4]} 8. h4 {[%clk 0:03:01.6]} 8...
h5 {[%clk 0:03:01.3]} 9. Nge2 {[%clk 0:03:03.1]} 9... Bd6 {[%clk 0:02:58.2]} 10.
Nf4 {[%clk 0:03:04.3]} 10... Bf7 {[%clk 0:02:59.2]} 11. g3 {[%clk 0:03:01.9]}
11... Nd7 {[%clk 0:02:59.3]} 12. a3 {[%clk 0:03:01.1]} 12... Qe7 {[%clk
0:02:57.1]} 13. Qe2 {[%clk 0:02:52.7]} 13... O-O-O {[%clk 0:02:56.5]} 14. O-O-O
{[%clk 0:02:52.2]} 14... Kb8 {[%clk 0:02:57.2]} 15. Kb1 {[%clk 0:02:52.3]} 15...
Nb6 {[%clk 0:02:56.4]} 16. Na2 {[%clk 0:02:50.3]} 16... Nc4 {[%clk 0:02:49.6]}
17. c3 {[%clk 0:02:51]} 17... Bc7 {[%clk 0:02:49.8]} 18. Nc1 {[%clk 0:02:49.3]}
18... Nd6 {[%clk 0:02:49.8]} 19. Bc2 {[%clk 0:02:47.2]} 19... Ne4 {[%clk
0:02:45.5]} 20. Nfd3 {[%clk 0:02:47.1]} 20... g5 {[%clk 0:02:41.5]} 21. Nb3
{[%clk 0:02:40.8]} 21... Bd6 {[%clk 0:02:39.3]} 22. Rh2 {[%clk 0:02:34.2]} 22...
Rde8 {[%clk 0:02:37.1]} 23. Qe1 {[%clk 0:02:26]} 23... Rhg8 {[%clk 0:02:31.3]}
24. Nd2 {[%clk 0:02:24.5]} 24... f4 {[%clk 0:02:23.7]} 25. gxf4 {[%clk
0:02:11.9]} 25... gxf4 {[%clk 0:02:24]} 26. Nxe4 {[%clk 0:02:13.2]} 26... dxe4
{[%clk 0:01:59.7]} 27. Nxf4 {[%clk 0:02:12.3]} 27... Rg4 {[%clk 0:02:00.7]} 28.
Qd2 {[%clk 0:02:03.9]} 28... Qc7 {[%clk 0:01:57.4]} 29. Rh3 {[%clk 0:01:55.8]}
29... Bxf4 {[%clk 0:01:57.5]} 30. exf4 {[%clk 0:01:56.7]} 30... Qxf4 {[%clk
0:01:59.4]} 31. Re3 {[%clk 0:01:46.9]} 31... f5 {[%clk 0:01:57.5]} 32. Rde1
{[%clk 0:01:40.3]} 32... Reg8 {[%clk 0:01:51.5]} 33. Bd1 {[%clk 0:01:37.8]}
33... Rxh4 {[%clk 0:01:50.5]} 34. f3 {[%clk 0:01:38.7]} 34... Rh2 {[%clk
0:01:42.8]} 35. Qc1 {[%clk 0:01:38.2]} 35... Bd5 {[%clk 0:01:38.5]} 36. c4
{[%clk 0:01:39.5]} 36... Be6 {[%clk 0:01:24.8]} 37. fxe4 {[%clk 0:01:37.6]}
37... fxe4 {[%clk 0:01:26.7]} 38. Ka1 {[%clk 0:01:39]} 38... Rf2 {[%clk
0:01:24.2]} 39. Qc3 {[%clk 0:01:36.6]} 39... Bf5 {[%clk 0:01:23.6]} 40. d5
{[%clk 0:01:17.7]} 40... cxd5 {[%clk 0:01:22.5]} 41. cxd5 {[%clk 0:01:19.6]}
41... Rc8 {[%clk 0:01:23.4]} 42. Qd4 {[%clk 0:01:13.6]} 42... Qd6 {[%clk
0:01:17.7]} 43. Bxh5 {[%clk 0:01:06.3]} 43... Rd8 {[%clk 0:01:15]} 44. Rd1
{[%clk 0:00:57]} 44... Rh2 {[%clk 0:01:08.5]} 45. Be2 {[%clk 0:00:52.2]} 45...
a6 {[%clk 0:01:05.5]} 46. Bc4 {[%clk 0:00:50.1]} 46... Rh5 {[%clk 0:01:02.7]}
47. Bb3 {[%clk 0:00:49]} 47... Bg6 {[%clk 0:01:01.3]} 48. Rg1 {[%clk 0:00:48.4]}
48... Bf7 {[%clk 0:00:49.7]} 49. Rd1 {[%clk 0:00:34.4]} 49... Bxd5 {[%clk
0:00:46.5]} 50. Ree1 {[%clk 0:00:30.3]} 50... Re5 {[%clk 0:00:41.2]} 51. Ba2
{[%clk 0:00:29.3]} 51... Kc7 {[%clk 0:00:35.3]} 52. Rc1+ {[%clk 0:00:30.2]}
52... Bc6 {[%clk 0:00:34.6]} 53. Qe3 {[%clk 0:00:31.1]} 53... Qd4 {[%clk
0:00:35.5]} 54. Qf4 {[%clk 0:00:31.2]} 54... e3 {[%clk 0:00:35]} 55. Qf7+ {[%clk
0:00:31.2]} 55... Rd7 {[%clk 0:00:33.8]} 56. Qg8 {[%clk 0:00:32.7]} 56... e2
{[%clk 0:00:34]} 57. Bc4 {[%clk 0:00:28.4]} 57... Qd2 {[%clk 0:00:33.6]} 58. Qg3
{[%clk 0:00:28.5]} 58... Re7 {[%clk 0:00:33.6]} 59. Rb1 {[%clk 0:00:20.1]} 59...
Qd6 {[%clk 0:00:32.5]} 60. Ba2 {[%clk 0:00:14.5]} 60... Kb8 {[%clk 0:00:33.1]}
61. Rbc1 {[%clk 0:00:14.9]} 61... Qc7 {[%clk 0:00:32]} 62. Qg4 {[%clk
0:00:14.1]} 62... Re4 {[%clk 0:00:32.2]} 63. Qh5 {[%clk 0:00:15]} 63... Qe5
{[%clk 0:00:33.1]} 64. Qh3 {[%clk 0:00:14.3]} 64... Rd4 {[%clk 0:00:33.3]} 65.
Qb3 {[%clk 0:00:14.7]} 65... Bb5 {[%clk 0:00:31.9]} 66. Qc3 {[%clk 0:00:15]}
66... Rd8 {[%clk 0:00:32.2]} 67. Qc2 {[%clk 0:00:14.6]} 67... Rc7 {[%clk
0:00:32.2]} 68. Qb1 {[%clk 0:00:12.6]} 68... Rxc1 {[%clk 0:00:33]} 69. Qxc1
{[%clk 0:00:14.5]} 69... Qd4 {[%clk 0:00:34.5]} 70. Bb3 {[%clk 0:00:15.2]} 70...
Qd2 {[%clk 0:00:35.6]} 71. Qb1 {[%clk 0:00:16.7]} 71... Bd3 {[%clk 0:00:35.4]}
72. Qc1 {[%clk 0:00:18.1]} 72... Qxc1+ {[%clk 0:00:35.5]} 73. Rxc1 {[%clk
0:00:20]} 73... Rf8 {[%clk 0:00:36.5]} 74. Ka2 {[%clk 0:00:10]} 74... Rf1 {[%clk
0:00:37.2]} 75. Rc3 {[%clk 0:00:11.6]} 75... e1=Q {[%clk 0:00:37.6]} 76. Bc2
{[%clk 0:00:13.5]} 76... Bxc2 {[%clk 0:00:38.2]} 77. Re3 {[%clk 0:00:14.3]}
77... Qa1# {[%clk 0:00:39]} 0-1

[Event "*** Titled Tuesday Blitz"]
[Site "Chess.com"]
[Date "2019.05.07"]
[Round "10"]
[White "Veiso"]
[Black "NateSolon"]
[Result "0-1"]
[WhiteElo "2380"]
[BlackElo "2506"]
[TimeControl "180+2"]
[EndTime "15:26:57 PDT"]
[Termination "NateSolon won by checkmate"]

1. d4 {[%clk 0:03:01.9]} 1... d5 {[%clk 0:03:00.4]} 2. c4 {[%clk 0:03:02.5]}
2... dxc4 {[%clk 0:03:02.3]} 3. e4 {[%clk 0:03:03.2]} 3... b5 {[%clk 0:03:03]}
4. a4 {[%clk 0:03:01.7]} 4... c6 {[%clk 0:03:04]} 5. b3 {[%clk 0:03:00.2]} 5...
e5 {[%clk 0:03:02.4]} 6. axb5 {[%clk 0:02:56.4]} 6... cxb5 {[%clk 0:03:02.5]} 7.
bxc4 {[%clk 0:02:56.6]} 7... Bb4+ {[%clk 0:02:58.1]} 8. Bd2 {[%clk 0:02:56.4]}
8... Qxd4 {[%clk 0:02:52.1]} 9. Bxb4 {[%clk 0:02:51]} 9... Qxa1 {[%clk
0:02:52.7]} 10. cxb5 {[%clk 0:02:41.1]} 10... Bb7 {[%clk 0:02:28.2]} 11. Bd3
{[%clk 0:02:25]} 11... Nd7 {[%clk 0:02:19.9]} 12. Qb3 {[%clk 0:02:16.6]} 12...
Rc8 {[%clk 0:02:10.5]} 13. Ne2 {[%clk 0:02:13]} 13... Nc5 {[%clk 0:02:08.3]} 14.
Qc4 {[%clk 0:01:52.1]} 14... Nxe4 {[%clk 0:01:43.6]} 15. Qb3 {[%clk 0:01:38.4]}
15... Ngf6 {[%clk 0:01:37.3]} 16. O-O {[%clk 0:01:37.1]} 16... Bd5 {[%clk
0:01:36.4]} 17. Qd1 {[%clk 0:01:33.3]} 17... Nc5 {[%clk 0:01:30.3]} 18. Bf5
{[%clk 0:01:32.2]} 18... Be6 {[%clk 0:01:24.3]} 19. Bxe6 {[%clk 0:01:27.8]}
19... fxe6 {[%clk 0:01:26.2]} 20. Qd6 {[%clk 0:01:26]} 20... Nfd7 {[%clk
0:01:17.5]} 21. Nec3 {[%clk 0:00:43.8]} 21... Qb2 {[%clk 0:01:09]} 22. Ba3
{[%clk 0:00:43.2]} 22... Qc2 {[%clk 0:01:07.5]} 23. Rd1 {[%clk 0:00:33.5]} 23...
Rf8 {[%clk 0:01:06.5]} 24. Rd2 {[%clk 0:00:32.5]} 24... Qf5 {[%clk 0:00:55]} 25.
f3 {[%clk 0:00:29.4]} 25... Kf7 {[%clk 0:00:55.6]} 26. Ne4 {[%clk 0:00:27.9]}
26... Kg8 {[%clk 0:00:54.2]} 27. Nxc5 {[%clk 0:00:19.9]} 27... Nxc5 {[%clk
0:00:51.7]} 28. Bxc5 {[%clk 0:00:21.1]} 28... Qxb1+ {[%clk 0:00:52.4]} 29. Rd1
{[%clk 0:00:22.7]} 29... Qxb5 {[%clk 0:00:52.5]} 30. Qxe6+ {[%clk 0:00:21.5]}
30... Kh8 {[%clk 0:00:51.9]} 31. Bxf8 {[%clk 0:00:22.5]} 31... Rxf8 {[%clk
0:00:52.1]} 32. Qd5 {[%clk 0:00:23.2]} 32... Qb6+ {[%clk 0:00:44.7]} 33. Kf1
{[%clk 0:00:24.5]} 33... Re8 {[%clk 0:00:43.9]} 34. Qd7 {[%clk 0:00:23.7]} 34...
Rf8 {[%clk 0:00:30.9]} 35. Qe7 {[%clk 0:00:18.8]} 35... Qf6 {[%clk 0:00:28.8]}
36. Qxf6 {[%clk 0:00:17.8]} 36... gxf6 {[%clk 0:00:29.8]} 37. Rd7 {[%clk
0:00:19.2]} 37... Ra8 {[%clk 0:00:29.9]} 38. Ke2 {[%clk 0:00:19.6]} 38... Kg8
{[%clk 0:00:29.7]} 39. Kd2 {[%clk 0:00:20.9]} 39... a5 {[%clk 0:00:30.5]} 40.
Kc2 {[%clk 0:00:21.2]} 40... Rb8 {[%clk 0:00:23.4]} 41. Ra7 {[%clk 0:00:21.6]}
41... Rb5 {[%clk 0:00:24.4]} 42. h4 {[%clk 0:00:21.2]} 42... h5 {[%clk
0:00:23.5]} 43. Kc3 {[%clk 0:00:19.2]} 43... Rc5+ {[%clk 0:00:21.6]} 44. Kb3
{[%clk 0:00:18.8]} 44... Rd5 {[%clk 0:00:22.8]} 45. Kc3 {[%clk 0:00:18.8]} 45...
Rd4 {[%clk 0:00:21.7]} 46. Rxa5 {[%clk 0:00:18.7]} 46... Rxh4 {[%clk 0:00:22.5]}
47. Ra7 {[%clk 0:00:20.3]} 47... Rh2 {[%clk 0:00:23.2]} 48. g4 {[%clk
0:00:19.6]} 48... hxg4 {[%clk 0:00:23.2]} 49. fxg4 {[%clk 0:00:21.5]} 49... Rg2
{[%clk 0:00:24.4]} 50. Ra4 {[%clk 0:00:22.3]} 50... Rg3+ {[%clk 0:00:23.8]} 51.
Kd2 {[%clk 0:00:23.1]} 51... Kg7 {[%clk 0:00:23.2]} 52. Ke2 {[%clk 0:00:24.3]}
52... Kg6 {[%clk 0:00:23.8]} 53. Kf2 {[%clk 0:00:25.7]} 53... Rb3 {[%clk
0:00:23.6]} 54. Rc4 {[%clk 0:00:26]} 54... Kg5 {[%clk 0:00:24.6]} 55. Kg2 {[%clk
0:00:27.3]} 55... Rd3 {[%clk 0:00:24.4]} 56. Kf2 {[%clk 0:00:28.3]} 56... Rd4
{[%clk 0:00:24.8]} 57. Rc8 {[%clk 0:00:27.6]} 57... Rxg4 {[%clk 0:00:23.7]} 58.
Ke3 {[%clk 0:00:28.9]} 58... Rg3+ {[%clk 0:00:24.4]} 59. Ke4 {[%clk 0:00:30.1]}
59... Rg4+ {[%clk 0:00:25.5]} 60. Ke3 {[%clk 0:00:31.3]} 60... Ra4 {[%clk
0:00:26.2]} 61. Rh8 {[%clk 0:00:31.6]} 61... Kf5 {[%clk 0:00:21.1]} 62. Rh5+
{[%clk 0:00:32.3]} 62... Ke6 {[%clk 0:00:22.4]} 63. Rh8 {[%clk 0:00:34.2]} 63...
Ra3+ {[%clk 0:00:22.9]} 64. Ke2 {[%clk 0:00:34.6]} 64... f5 {[%clk 0:00:23.2]}
65. Re8+ {[%clk 0:00:35.5]} 65... Kd5 {[%clk 0:00:24.2]} 66. Rb8 {[%clk
0:00:36]} 66... f4 {[%clk 0:00:24.4]} 67. Rb4 {[%clk 0:00:36.7]} 67... Ke6
{[%clk 0:00:20.1]} 68. Rb8 {[%clk 0:00:37.3]} 68... Kf5 {[%clk 0:00:21.2]} 69.
Rb7 {[%clk 0:00:38.7]} 69... Ra2+ {[%clk 0:00:22.1]} 70. Ke1 {[%clk 0:00:37.4]}
70... e4 {[%clk 0:00:22.8]} 71. Rb5+ {[%clk 0:00:36.8]} 71... Kg4 {[%clk
0:00:23.7]} 72. Rb8 {[%clk 0:00:38.1]} 72... e3 {[%clk 0:00:23.3]} 73. Rh8
{[%clk 0:00:35.3]} 73... Kf3 {[%clk 0:00:20.6]} 74. Rh3+ {[%clk 0:00:36.1]}
74... Ke4 {[%clk 0:00:22]} 75. Rh8 {[%clk 0:00:37.8]} 75... Ra1+ {[%clk
0:00:21.4]} 76. Ke2 {[%clk 0:00:38.5]} 76... f3# {[%clk 0:00:22.8]} 0-1

[Event "*** Titled Tuesday Blitz"]
[Site "Chess.com"]
[Date "2019.05.07"]
[Round "10"]
[White "GameOverBro"]
[Black "ZuchBolt"]
[Result "1-0"]
[WhiteElo "2423"]
[BlackElo "2257"]
[TimeControl "180+2"]
[EndTime "15:27:15 PDT"]
[Termination "GameOverBro won by resignation"]

1. e4 {[%clk 0:02:38.1]} 1... e5 {[%clk 0:02:52.5]} 2. Nf3 {[%clk 0:02:39.1]}
2... Nc6 {[%clk 0:02:53.5]} 3. Bc4 {[%clk 0:02:40]} 3... Bc5 {[%clk 0:02:54.3]}
4. d3 {[%clk 0:02:41.4]} 4... Nf6 {[%clk 0:02:55.1]} 5. Be3 {[%clk 0:02:42.4]}
5... Bb6 {[%clk 0:02:54.7]} 6. O-O {[%clk 0:02:44.2]} 6... d6 {[%clk 0:02:54.9]}
7. h3 {[%clk 0:02:44.9]} 7... h6 {[%clk 0:02:55.8]} 8. Nbd2 {[%clk 0:02:45.9]}
8... O-O {[%clk 0:02:56.5]} 9. a4 {[%clk 0:02:46.5]} 9... a6 {[%clk 0:02:56.7]}
10. Re1 {[%clk 0:02:46.1]} 10... Re8 {[%clk 0:02:56.9]} 11. c3 {[%clk
0:02:46.8]} 11... Be6 {[%clk 0:02:57.1]} 12. b4 {[%clk 0:02:47.9]} 12... Bxe3
{[%clk 0:02:57.4]} 13. fxe3 {[%clk 0:02:49.6]} 13... d5 {[%clk 0:02:57.7]} 14.
exd5 {[%clk 0:02:50.6]} 14... Bxd5 {[%clk 0:02:59.6]} 15. e4 {[%clk 0:02:47.3]}
15... Bxc4 {[%clk 0:02:57.4]} 16. Nxc4 {[%clk 0:02:49.2]} 16... b5 {[%clk
0:02:57.5]} 17. Ne3 {[%clk 0:02:45.3]} 17... g6 {[%clk 0:02:40.9]} 18. Qc2
{[%clk 0:02:41.3]} 18... Qd6 {[%clk 0:02:38.2]} 19. Red1 {[%clk 0:02:37.6]}
19... Rad8 {[%clk 0:02:16.2]} 20. axb5 {[%clk 0:02:37.3]} 20... axb5 {[%clk
0:02:18.1]} 21. Qa2 {[%clk 0:02:31.4]} 21... Kg7 {[%clk 0:02:15.2]} 22. Nh4
{[%clk 0:02:32]} 22... Qe6 {[%clk 0:02:11.9]} 23. Qc2 {[%clk 0:02:22.5]} 23...
Rd7 {[%clk 0:01:49.4]} 24. Rd2 {[%clk 0:02:11.2]} 24... Red8 {[%clk 0:01:50.2]}
25. Rad1 {[%clk 0:01:47.8]} 25... Ne7 {[%clk 0:01:50.7]} 26. Nf3 {[%clk
0:01:44.4]} 26... Qd6 {[%clk 0:01:42.3]} 27. Rf2 {[%clk 0:01:43.3]} 27... c5
{[%clk 0:01:36.2]} 28. bxc5 {[%clk 0:01:34.5]} 28... Qxc5 {[%clk 0:01:38.1]} 29.
Ng4 {[%clk 0:01:26.8]} 29... Nxe4 {[%clk 0:01:29.7]} 30. Nfxe5 {[%clk
0:01:12.4]} 30... Nxf2 {[%clk 0:01:24.7]} 31. Qxf2 {[%clk 0:01:14.3]} 31...
Qxf2+ {[%clk 0:01:24.9]} 32. Nxf2 {[%clk 0:01:16.2]} 32... Rd5 {[%clk
0:01:22.7]} 33. d4 {[%clk 0:01:12.6]} 33... f6 {[%clk 0:01:18.4]} 34. Nf3 {[%clk
0:01:11.4]} 34... Nf5 {[%clk 0:01:18.7]} 35. Rb1 {[%clk 0:01:11.8]} 35... Nd6
{[%clk 0:01:04.3]} 36. Nd3 {[%clk 0:01:09]} 36... Nc4 {[%clk 0:00:58.9]} 37. Rb4
{[%clk 0:01:04.9]} 37... Ra8 {[%clk 0:00:52]} 38. Nc5 {[%clk 0:01:04.6]} 38...
Nd6 {[%clk 0:00:35.2]} 39. h4 {[%clk 0:01:03.4]} 39... Ra1+ {[%clk 0:00:34.2]}
40. Kh2 {[%clk 0:01:04.6]} 40... Kf7 {[%clk 0:00:31.4]} 41. Nd2 {[%clk
0:00:58.5]} 41... Rd1 {[%clk 0:00:27.4]} 42. Ndb3 {[%clk 0:00:56.7]} 42... h5
{[%clk 0:00:25.4]} 43. Na5 {[%clk 0:00:57.3]} 43... g5 {[%clk 0:00:23.4]} 44.
hxg5 {[%clk 0:00:58.1]} 44... fxg5 {[%clk 0:00:25.3]} 45. Nc6 {[%clk 0:00:59]}
45... h4 {[%clk 0:00:21.4]} 46. Ne5+ {[%clk 0:00:59]} 46... Kg7 {[%clk
0:00:18.9]} 47. Ng4 {[%clk 0:00:58.4]} 47... Nf5 {[%clk 0:00:17.9]} 48. Rxb5
{[%clk 0:00:50]} 48... Ng3 {[%clk 0:00:18.3]} 49. Rb7+ {[%clk 0:00:50.8]} 49...
Kg6 {[%clk 0:00:14.5]} 50. Rb6+ {[%clk 0:00:50.2]} 50... Kg7 {[%clk 0:00:11.2]}
51. Rb7+ {[%clk 0:00:50.9]} 51... Kg6 {[%clk 0:00:12.3]} 52. Rb6+ {[%clk
0:00:52]} 52... Kg7 {[%clk 0:00:11]} 53. Nf2 {[%clk 0:00:34.1]} 53... Rf1 {[%clk
0:00:11.2]} 54. Ncd3 {[%clk 0:00:35]} 54... Ra5 {[%clk 0:00:09.1]} 55. Kh3
{[%clk 0:00:36.1]} 55... Raa1 {[%clk 0:00:09.3]} 56. Kg4 {[%clk 0:00:36.9]}
56... Ra2 {[%clk 0:00:08.8]} 57. Rb7+ {[%clk 0:00:37.4]} 57... Kf6 {[%clk
0:00:08.8]} 58. Rb6+ {[%clk 0:00:39]} 58... Ke7 {[%clk 0:00:09.7]} 59. d5 {[%clk
0:00:38.4]} 59... Raxf2 {[%clk 0:00:09.5]} 60. Nxf2 {[%clk 0:00:38.5]} 60...
Rxf2 {[%clk 0:00:11.4]} 61. Kxg5 {[%clk 0:00:40]} 61... Nf5 {[%clk 0:00:11.1]}
62. c4 {[%clk 0:00:33.6]} 62... Ne3 {[%clk 0:00:11.3]} 63. Re6+ {[%clk
0:00:31.6]} 63... Kd7 {[%clk 0:00:11.5]} 64. Rxe3 {[%clk 0:00:33.5]} 64... Rxg2+
{[%clk 0:00:13]} 65. Kxh4 {[%clk 0:00:34.3]} 65... Rc2 {[%clk 0:00:14.6]} 66.
Re4 {[%clk 0:00:35.6]} 66... Kd6 {[%clk 0:00:16.1]} 67. Kg5 {[%clk 0:00:36.8]}
67... Kc5 {[%clk 0:00:16.8]} 68. Kf5 {[%clk 0:00:38.2]} 68... Rf2+ {[%clk
0:00:16.4]} 69. Ke6 {[%clk 0:00:39.5]} 69... Rf8 {[%clk 0:00:17.9]} 70. Ke7
{[%clk 0:00:40.4]} 70... Rh8 {[%clk 0:00:18.6]} 71. Kd7 {[%clk 0:00:39]} 71...
Rh7+ {[%clk 0:00:18.6]} 72. Re7 {[%clk 0:00:39.9]} 72... Rh8 {[%clk 0:00:19.5]}
73. Kc7 {[%clk 0:00:39]} 73... Rh6 {[%clk 0:00:17.7]} 74. d6 {[%clk 0:00:35.8]}
1-0

[Event "*** Titled Tuesday Blitz"]
[Site "Chess.com"]
[Date "2019.05.07"]
[Round "10"]
[White "slowdumbb"]
[Black "Vamostodorecto"]
[Result "0-1"]
[WhiteElo "2357"]
[BlackElo "2417"]
[TimeControl "180+2"]
[EndTime "15:27:15 PDT"]
[Termination "Vamostodorecto won by resignation"]

1. e4 {[%clk 0:03:01.9]} 1... e5 {[%clk 0:02:46.2]} 2. Nf3 {[%clk 0:03:02.4]}
2... Nc6 {[%clk 0:02:46.5]} 3. Nc3 {[%clk 0:03:04]} 3... Nf6 {[%clk 0:02:46.2]}
4. g3 {[%clk 0:03:05.4]} 4... d5 {[%clk 0:02:46.2]} 5. exd5 {[%clk 0:03:07.3]}
5... Nxd5 {[%clk 0:02:47.8]} 6. Bg2 {[%clk 0:03:08.9]} 6... Nxc3 {[%clk
0:02:49.2]} 7. bxc3 {[%clk 0:03:10.8]} 7... Bd6 {[%clk 0:02:50.4]} 8. O-O {[%clk
0:03:12.1]} 8... O-O {[%clk 0:02:50.8]} 9. d3 {[%clk 0:03:13.7]} 9... Bg4 {[%clk
0:02:51.2]} 10. Qe1 {[%clk 0:03:15]} 10... Qd7 {[%clk 0:02:51.2]} 11. Bb2 {[%clk
0:03:15.5]} 11... Bh3 {[%clk 0:02:49.4]} 12. c4 {[%clk 0:03:16.5]} 12... Bxg2
{[%clk 0:02:49.9]} 13. Kxg2 {[%clk 0:03:18.4]} 13... Rae8 {[%clk 0:02:43.9]} 14.
Qe4 {[%clk 0:03:17.8]} 14... Kh8 {[%clk 0:02:17.9]} 15. Qd5 {[%clk 0:03:15.1]}
15... Ne7 {[%clk 0:02:11.7]} 16. Nxe5 {[%clk 0:02:58.1]} 16... Qf5 {[%clk
0:01:51.6]} 17. Qd4 {[%clk 0:02:59]} 17... f6 {[%clk 0:01:40.9]} 18. Nf3 {[%clk
0:02:55.1]} 18... Nc6 {[%clk 0:01:35.5]} 19. Qc3 {[%clk 0:02:50.3]} 19... Re2
{[%clk 0:01:35.1]} 20. Rae1 {[%clk 0:02:49.7]} 20... Bb4 {[%clk 0:01:34.5]} 21.
Rxe2 {[%clk 0:02:32]} 21... Bxc3 {[%clk 0:01:34.6]} 22. Bxc3 {[%clk 0:02:33.9]}
22... Qc5 {[%clk 0:01:19.8]} 23. Rb1 {[%clk 0:02:33.2]} 23... b6 {[%clk
0:01:10.4]} 24. Bb2 {[%clk 0:01:56.3]} 24... Qb4 {[%clk 0:00:48.8]} 25. a3
{[%clk 0:01:56.9]} 25... Qa4 {[%clk 0:00:47.9]} 26. Rbe1 {[%clk 0:01:57.1]}
26... h6 {[%clk 0:00:37.6]} 27. h4 {[%clk 0:01:45.9]} 27... Kh7 {[%clk
0:00:38.6]} 28. g4 {[%clk 0:01:46.6]} 28... Nd8 {[%clk 0:00:36.2]} 29. g5 {[%clk
0:01:42.4]} 29... fxg5 {[%clk 0:00:36.8]} 30. hxg5 {[%clk 0:01:43.1]} 30... Qc6
{[%clk 0:00:38.2]} 31. Re4 {[%clk 0:01:43.5]} 31... Nf7 {[%clk 0:00:31.7]} 32.
Kg1 {[%clk 0:01:39.6]} 32... Nxg5 {[%clk 0:00:27.7]} 33. Nxg5+ {[%clk
0:01:40.2]} 33... hxg5 {[%clk 0:00:29.6]} 34. Re7 {[%clk 0:01:41]} 34... Qf3
{[%clk 0:00:21.3]} 35. Rxg7+ {[%clk 0:01:29.9]} 35... Kh6 {[%clk 0:00:21.6]} 36.
Re6+ {[%clk 0:01:31.3]} 36... Kh5 {[%clk 0:00:20.6]} 37. Rh7+ {[%clk 0:01:30.1]}
37... Kg4 {[%clk 0:00:21.8]} 38. Re4+ {[%clk 0:01:24.3]} 38... Rf4 {[%clk
0:00:21.8]} 39. Rxf4+ {[%clk 0:01:15.6]} 39... Qxf4 {[%clk 0:00:23.7]} 40. Re7
{[%clk 0:01:16]} 40... Qd2 {[%clk 0:00:23.5]} 41. Be5 {[%clk 0:00:58.3]} 41...
Qxc2 {[%clk 0:00:19.7]} 42. d4 {[%clk 0:00:51.3]} 42... Qxc4 {[%clk 0:00:19.7]}
43. Rxc7 {[%clk 0:00:51.6]} 43... Qa4 {[%clk 0:00:18.6]} 44. Rc3 {[%clk
0:00:49.1]} 44... a5 {[%clk 0:00:14.8]} 45. Rd3 {[%clk 0:00:40.4]} 45... Qc4
{[%clk 0:00:13.8]} 46. Rg3+ {[%clk 0:00:35]} 46... Kf5 {[%clk 0:00:14.1]} 47.
Rf3+ {[%clk 0:00:36.3]} 47... Kg4 {[%clk 0:00:13.1]} 48. Rg3+ {[%clk 0:00:37.3]}
48... Kh5 {[%clk 0:00:14.3]} 49. Rh3+ {[%clk 0:00:34.7]} 49... Kg6 {[%clk
0:00:15]} 50. Rg3 {[%clk 0:00:36.6]} 50... Kf5 {[%clk 0:00:11.7]} 51. Rf3+
{[%clk 0:00:37.1]} 51... Ke4 {[%clk 0:00:09.6]} 52. Rg3 {[%clk 0:00:37.5]} 52...
Kd5 {[%clk 0:00:06.1]} 53. Kg2 {[%clk 0:00:36.8]} 53... Qc1 {[%clk 0:00:05.9]}
54. Bf6 {[%clk 0:00:35.7]} 54... Kc4 {[%clk 0:00:02.9]} 55. Bxg5 {[%clk
0:00:30]} 55... Qb1 {[%clk 0:00:03.7]} 56. Bf6 {[%clk 0:00:25.6]} 56... Qe4+
{[%clk 0:00:04.4]} 57. Kg1 {[%clk 0:00:27]} 57... b5 {[%clk 0:00:05.5]} 58. Bg7
{[%clk 0:00:06.5]} 58... Qe1+ {[%clk 0:00:06.2]} 59. Kg2 {[%clk 0:00:07.4]}
59... Qe4+ {[%clk 0:00:07.8]} 60. f3 {[%clk 0:00:08]} 60... Qe2+ {[%clk
0:00:06.7]} 61. Kh3 {[%clk 0:00:09.4]} 61... b4 {[%clk 0:00:06.3]} 62. axb4
{[%clk 0:00:10.3]} 62... axb4 {[%clk 0:00:08.1]} 63. f4 {[%clk 0:00:11.5]} 63...
Qf1+ {[%clk 0:00:08.5]} 64. Kg4 {[%clk 0:00:12.1]} 64... b3 {[%clk 0:00:08.6]}
65. d5 {[%clk 0:00:13.5]} 65... Qd1+ {[%clk 0:00:09.3]} 66. Kg5 {[%clk 0:00:14]}
66... Qxd5+ {[%clk 0:00:10.6]} 67. f5 {[%clk 0:00:15.6]} 67... Qd2+ {[%clk
0:00:10.2]} 68. Kg6 {[%clk 0:00:15.9]} 68... Qd6+ {[%clk 0:00:07.1]} 69. Kf7
{[%clk 0:00:16.2]} 69... Qxg3 {[%clk 0:00:07.6]} 0-1